Workbook

Sheet ORÇAMENTO
A1: <---- NUMERAR SERVIÇOS PARA CPU | C1: Ministério da Integração Nacional
C2: Companhia de Desenvolvimento dos Vales do São Francisco e do Parnaíba
C3: 1ª Superintendência Regional
B5: OBRA: | C5: RECAPEAMENTO - FELIXLÂNDIA - RUAS CORONEL EFRAIM EPIFÂNIO, RAIMUNDO FERREIRA DA SILVA, MARCOS ANTERO
B6: DATA: | C6: JANEIRO / 2020 | G6: BDI Serviços: | I6: ='BDI SERV'!D31/100 -> 0.2148
B7: PRAZO DE EXECUÇÃO: 120 DIAS
B8: ITEM | C8: DISCRIMINAÇÃO | D8: REFER. | E8: UNID. | F8: QUANT. | G8: P. UNITÁRIO | H8: P.UNIT.C/ BDI | I8: P. TOTAL | J8: =I26 -> 475158.24
A9: A | B9: 1 | C9: SERVIÇOS PRELIMINARES E URBANIZAÇÃO | I9: =SUM(I10:I14) -> 31047.31 | J9: =I9/I26 -> 0.0653409904
A10: 1 | B10: =MEMÓRIA!B11 -> 1.1 | C10: =MEMÓRIA!C11 -> MOBILIZAÇÃO E DESMOBILIZAÇÃO | D10: CPU | E10: =MEMÓRIA!D11 -> GL | F10: =MEMÓRIA!I11 -> 1 | G10: =VLOOKUP(A10,CPU!$A$1:$N$4634,9) -> 3844.98 | H10: =VLOOKUP(A10,CPU!$A$1:$N$4634,10) -> 4670.881704 | I10: =ROUND(F10*H10,2) -> 4670.88
A11: 2 | B11: =MEMÓRIA!B14 -> 1.2 | C11: =MEMÓRIA!C14 -> ADMINISTRAÇÃO LOCAL | D11: CPU | E11: =MEMÓRIA!D14 -> GL | F11: =MEMÓRIA!I14 -> 1 | G11: =VLOOKUP(A11,CPU!$A$1:$N$4634,9) -> 17587.81 | H11: =VLOOKUP(A11,CPU!$A$1:$N$4634,10) -> 21365.67159 | I11: =ROUND(F11*H11,2) -> 21365.67 | J11: =I11/I26 -> 0.04496537827
A12: 3 | B12: =MEMÓRIA!B17 -> 1.3 | C12: =MEMÓRIA!C17 -> CANTEIRO DE OBRAS | D12: CPU | E12: =MEMÓRIA!D17 -> GL | F12: =MEMÓRIA!I17 -> 1 | G12: =VLOOKUP(A12,CPU!$A$1:$N$4634,9) -> 2600 | H12: =VLOOKUP(A12,CPU!$A$1:$N$4634,10) -> 3158.48 | I12: =ROUND(F12*H12,2) -> 3158.48
A13: 4 | B13: =MEMÓRIA!B20 -> 1.4 | C13: =MEMÓRIA!C20 -> PLACA DE OBRA EM CHAPA DE AÇO GALVANIZADO | D13: 74209/001 | E13: =MEMÓRIA!D20 -> M2 | F13: =MEMÓRIA!I20 -> 4 | G13: =VLOOKUP(A13,CPU!$A$1:$N$4634,9) -> 306.1769 | H13: =VLOOKUP(A13,CPU!$A$1:$N$4634,10) -> 371.9436981 | I13: =ROUND(F13*H13,2) -> 1487.77
A14: 5 | B14: =MEMÓRIA!B23 -> 1.5 | C14: =MEMÓRIA!C23 -> EXECUÇÃO E COMPACTAÇÃO DE BASE E OU SUB BASE PARA PAVIMENTAÇÃO DE BRITA GRADUADA SIMPLES TRATADA COM CIMENTO, PARA TRATAMENTO DOS BURACOS | D14: 96397 | E14: =MEMÓRIA!D23 -> M3 | F14: =MEMÓRIA!I23 -> 2 | G14: =VLOOKUP(A14,CPU!$A$1:$N$4634,9) -> 150.02915 | H14: =VLOOKUP(A14,CPU!$A$1:$N$4634,10) -> 182.2554114 | I14: =ROUND(F14*H14,2) -> 364.51
A15: B | B15: =MEMÓRIA!B26 -> 2 | C15: =MEMÓRIA!C26 -> RECAPEAMENTO | I15: =SUM(I16:I17) -> 343777.74 | J15: =I15/I26 -> 0.7235015855
A16: 6 | B16: =MEMÓRIA!B28 -> 2.1 | C16: =MEMÓRIA!C28 -> EXECUÇÃO DE PINTURA DE LIGAÇÃO COM EMULSÃO ASFÁLTICA RR-2C, INCLUSIVE LIMPEZA DO PAVIMENTO | D16: 96402 | E16: =MEMÓRIA!D28 -> M2 | F16: =MEMÓRIA!I28 -> 14233.02 | G16: =VLOOKUP(A16,CPU!$A$1:$N$4634,9) -> 1.902812 | H16: =VLOOKUP(A16,CPU!$A$1:$N$4634,10) -> 2.311536018 | I16: =ROUND(F16*H16,2) -> 32900.14
A17: 7 | B17: =MEMÓRIA!B31 -> 2.2 | C17: =MEMÓRIA!C31 -> PRE-MISTURADO A FRIO COM EMULSAO RL-1C, INCLUSO USINAGEM E APLICACAO EXCLUSIVE TRANSPORTE | D17: 73759/002 | E17: =MEMÓRIA!D31 -> M3 | F17: =MEMÓRIA!I31 -> 569.3208 | G17: =VLOOKUP(A17,CPU!$A$1:$N$4634,9) -> 449.49782 | H17: =VLOOKUP(A17,CPU!$A$1:$N$4634,10) -> 546.0499517 | I17: =ROUND(F17*H17,2) -> 310877.6
A18: C | B18: =MEMÓRIA!B34 -> 3 | C18: =MEMÓRIA!C34 -> TRANSPORTE DE MATERIAIS | I18: =SUM(I19:I20) -> 40542.59 | J18: =I18/I26 -> 0.08532439635
A19: 8 | B19: =MEMÓRIA!B36 -> 3.1 | C19: =MEMÓRIA!C36 -> TRANSPORTE COM CAMINHÃO BASCULANTE DE 18 M3, EM VIA URBANA PAVIMENTADA, DMT ACIMA DE 30 KM(UNIDADE: M3XKM). | D19: 95427 | E19: =MEMÓRIA!D36 -> M3XKM | F19: =MEMÓRIA!I36 -> 48163.82887 | G19: =VLOOKUP(A19,CPU!$A$1:$N$4634,9) -> 0.5552071 | H19: =VLOOKUP(A19,CPU!$A$1:$N$4634,10) -> 0.6744655851 | I19: =ROUND(F19*H19,2) -> 32484.85
A20: 9 | B20: 3.3 | C20: =MEMÓRIA!C40 -> TRANSPORTE DE MATERIAL ASFALTICO, COM CAMINHÃO COM CAPACIDADE DE 30000L EM RODOVIA PAVIMENTADA PARA DISTÂNCIAS MÉDIAS DE TRANSPORTE SUPERIORES A 100 KM. | D20: 93176 | E20: M² | F20: =MEMÓRIA!I40 -> 12850.7091 | G20: =VLOOKUP(A20,CPU!$A$1:$N$4634,9) -> 0.5161562 | H20: =VLOOKUP(A20,CPU!$A$1:$N$4634,10) -> 0.6270265518 | I20: =ROUND(F20*H20,2) -> 8057.74
A21: D | B21: =MEMÓRIA!B43 -> 4 | C21: =MEMÓRIA!C43 -> SINALIZAÇÃO | I21: =SUM(I22:I22) -> 8964.27 | J21: =I21/I26 -> 0.01886586245
A22: 10 | B22: =MEMÓRIA!B45 -> 4.1 | C22: =MEMÓRIA!C45 -> SINALIZACAO HORIZONTAL COM TINTA RETRORREFLETIVA A BASE DE RESINA ACRILICA COM MICROESFERAS DE VIDRO | D22: 72947 | E22: =MEMÓRIA!D45 -> M2 | F22: =MEMÓRIA!I45 -> 509.07 | G22: 14.49547741 | H22: =VLOOKUP(A22,CPU!$A$1:$N$4634,10) -> 17.60910596 | I22: =ROUND(F22*H22,2) -> 8964.27
A23: E | B23: 5. | C23: =MEMÓRIA!C50 -> OBRAS COMPLEMENTARES | I23: =SUM(I24:I25) -> 50826.33 | J23: =I23/I26 -> 0.1069671653
A24: 11 | B24: 5.1 | C24: =MEMÓRIA!C52 -> GUIA (MEIO-FIO) CONCRETO, MOLDADA IN LOCO EM TRECHO RETO COM EXTRUSORA, 13 CM BASE X 22 CM ALTURA. | D24: 94263 | E24: =MEMÓRIA!D52 -> M | F24: =MEMÓRIA!I52 -> 1575.38 | G24: =VLOOKUP(A24,CPU!$A$1:$N$4634,9) -> 21.62705 | H24: =VLOOKUP(A24,CPU!$A$1:$N$4634,10) -> 26.27254034 | I24: =ROUND(F24*H24,2) -> 41389.23
A25: 12 | B25: 5.2 | C25: =MEMÓRIA!C55 -> TRANSPORTE COM CAMINHÃO BASCULANTE DE 18 M3, EM VIA URBANA PAVIMENTADA, DMT ACIMA DE 30 KM(UNIDADE: M3XKM). | D25: 95427 | E25: M3XKM | F25: =MEMÓRIA!I55 -> 14363.3409 | G25: =VLOOKUP(A25,CPU!$A$1:$N$4634,9) -> 0.5408518 | H25: =VLOOKUP(A25,CPU!$A$1:$N$4634,10) -> 0.6570267666 | I25: =ROUND(F25*H25,2) -> 9437.1
B26: TOTAL GERAL DA OBRA COM BDI | I26: =SUM(I9,I15,I18,I21,I23) -> 475158.24

Sheet MEMÓRIA
A1: <---- NUMERAR SERVIÇOS PARA CPU | C1: Ministério da Integração Nacional
C2: Companhia de Desenvolvimento dos Vales do São Francisco e do Parnaíba
C3: 1ª Superintendência Regional
B5: OBRA: | C5: =ORÇAMENTO!C5 -> RECAPEAMENTO - FELIXLÂNDIA - RUAS CORONEL EFRAIM EPIFÂNIO, RAIMUNDO FERREIRA DA SILVA, MARCOS ANTERO
B6: DATA: | C6: JANEIRO / 2020 | G6: BDI Serviços: | I6: ='BDI SERV'!D31/100 -> 0.2148
B7: PRAZO DE EXECUÇÃO: 120 DIAS | G7: BDI Materiais: | I7: ='BDI FORN'!D31/100 -> 0.1806
B8: ITEM | C8: DISCRIMINAÇÃO | D8: COMPRIM. | E8: LARGURA | F8: ALTURA | G8: DISTANCIA | H8: REPET. | I8: TOTAL
A9: A | B9: 1 | C9: SERVIÇOS PRELIMINARES
A11: 1 | B11: 1.1 | C11: MOBILIZAÇÃO E DESMOBILIZAÇÃO | D11: GL | I11: =SUM(I12:I12) -> 1
C12: MOBILIZAÇÃO E DESMOBILIZAÇÃO DA OBRA | D12: 1 | I12: =D12 -> 1
A14: 2 | B14: 1.2 | C14: ADMINISTRAÇÃO LOCAL | D14: GL | I14: =SUM(I15:I15) -> 1
C15: ADMINISTRAÇÃO LOCAL DA OBRA | D15: 1 | I15: =D15 -> 1
A17: 3 | B17: 1.3 | C17: CANTEIRO DE OBRAS | D17: GL | I17: =SUM(I18:I18) -> 1
C18: CANTEIRO DE OBRAS | D18: 1 | I18: =D18 -> 1
A20: 4 | B20: 1.4 | C20: PLACA DE OBRA EM CHAPA DE AÇO GALVANIZADO | D20: M2 | I20: =SUM(I21:I21) -> 4
C21: PLACA DE OBRA | D21: 2 | E21: 1 | H21: 2 | I21: =D21*E21*H21 -> 4
A23: 5 | B23: 1.5 | C23: EXECUÇÃO E COMPACTAÇÃO DE BASE E OU SUB BASE PARA PAVIMENTAÇÃO DE BRITA GRADUADA SIMPLES TRATADA COM CIMENTO, PARA TRATAMENTO DOS BURACOS | D23: M3 | I23: =SUM(I24:I24) -> 2
C24: ESTIMATIVA PARA TRATAR OS BURACOS | D24: =2 -> 2 | I24: =D24 -> 2
A26: B | B26: 2 | C26: RECAPEAMENTO
A28: 6 | B28: 2.1 | C28: EXECUÇÃO DE PINTURA DE LIGAÇÃO COM EMULSÃO ASFÁLTICA RR-2C, INCLUSIVE LIMPEZA DO PAVIMENTO | D28: M2 | I28: =SUM(I29:I29) -> 14233.02
C29: ÁREA DE PAVIMENTO (LEVANT. CAD) | I29: 14233.02 | K29: 3.29
A31: 7 | B31: 2.2 | C31: PRE-MISTURADO A FRIO COM EMULSAO RL-1C, INCLUSO USINAGEM E APLICACAO EXCLUSIVE TRANSPORTE | D31: M3 | I31: =SUM(I32:I32) -> 569.3208
C32: PAVIMENTAÇÃO RUA | D32: =I28 -> 14233.02 | E32: 0.04 | I32: =E32*D32 -> 569.3208
A34: C | B34: 3 | C34: TRANSPORTE DE MATERIAIS
A36: 8 | B36: 3.1 | C36: TRANSPORTE COM CAMINHÃO BASCULANTE DE 18 M3, EM VIA URBANA PAVIMENTADA, DMT ACIMA DE 30 KM(UNIDADE: M3XKM). | D36: M3XKM | I36: =SUM(I37:I38) -> 48163.82887
C37: TRANSPORTE BRITA | D37: 0.704 | E37: =I31+I23 -> 571.3208 | G37: 59.4 | I37: =(D37*E37)*G37 -> 23891.26469
C38: TRANSPORTE AREIA | D38: 0.293 | E38: =I31+I23 -> 571.3208 | G38: 145 | I38: =(D38*E38)*G38 -> 24272.56419
A40: 9 | B40: 3.2 | C40: TRANSPORTE DE MATERIAL ASFALTICO, COM CAMINHÃO COM CAPACIDADE DE 30000L EM RODOVIA PAVIMENTADA PARA DISTÂNCIAS MÉDIAS DE TRANSPORTE SUPERIORES A 100 KM. | D40: TXKM | I40: =SUM(I41) -> 12850.7091
C41: TRANSPORTE MATERIAL ASFÁLTICO | D41: 0.132 | E41: =I31 -> 569.3208 | G41: 171 | I41: =(D41*E41)*G41 -> 12850.7091
A43: D | B43: 4 | C43: SINALIZAÇÃO
A45: 10 | B45: 4.1 | C45: SINALIZACAO HORIZONTAL COM TINTA RETRORREFLETIVA A BASE DE RESINA ACRILICA COM MICROESFERAS DE VIDRO | D45: M2 | I45: =SUM(I46:I48) -> 509.07
C46: FAIXA DIVISORIA DE FLUXO CENTRAL | I46: 188.33
C47: FAIXA DE BORDO | I47: 307.23
C48: VARIAÇÃO DE LARGURA DE VIA (CONFORME CAD) | I48: 13.51
A50: E | B50: 5. | C50: OBRAS COMPLEMENTARES
A52: 11 | B52: 5.1 | C52: GUIA (MEIO-FIO) CONCRETO, MOLDADA IN LOCO EM TRECHO RETO COM EXTRUSORA, 13 CM BASE X 22 CM ALTURA. | D52: M | I52: =SUM(I53:I53) -> 1575.38
C53: CONFORME LEVANTAMENTO (CAD) | D53: 1575.38 | I53: =D53 -> 1575.38 | K53: 10.83 | M53: =K53 -> 10.83
K54: 45.71 | M54: =K54 -> 45.71
A55: 12 | B55: 5.2 | C55: TRANSPORTE COM CAMINHÃO BASCULANTE DE 18 M3, EM VIA URBANA PAVIMENTADA, DMT ACIMA DE 30 KM(UNIDADE: M3XKM). | D55: M3XKM | I55: =SUM(I56:I59) -> 14363.3409 | K55: 28.05 | M55: 28.05
C56: TRANSPORTE DE AGREGADOS PARA GUIA E SARJETA | E56: ÁREA: | F56: CONSUMO/M³: | G56: DMT: | K56: 18.2 | M56: 18.2
C57: BRITA | D57: =I52 -> 1575.38 | E57: =(0.15*0.22)+(0.3*0.1) -> 0.063 | F57: 0.587 | G57: 59.4 | H57: Curvelo | I57: =D57*E57*F57*G57 -> 3460.59219 | K57: 15.29 | M57: 15.29
C58: AREIA | D58: =I52 -> 1575.38 | E58: =(0.15*0.22)+(0.3*0.1) -> 0.063 | F58: 0.756 | G58: 145 | H58: Inhaúma | I58: =D58*E58*F58*G58 -> 10879.6688 | K58: 15.6 | M58: 15.6
C59: CIMENTO | D59: =I52 -> 1575.38 | E59: =(0.15*0.22)+(0.3*0.1) -> 0.063 | F59: =322.98*1.44/1000 -> 0.4650912 | G59: 0.5 | H59: Depósito | I59: =D59*E59*F59*G59 -> 23.0799043 | K59: 20.92 | M59: 20.92
K60: 17.61 | M60: 17.61
K61: 3.44 | M61: 3.44
K62: 23.42 | M62: 23.42
K63: 27.26 | M63: 27.26
K64: 45.71 | M64: 45.71
K65: 11.52 | L65: 2 | M65: =K65*L65 -> 23.04
K66: 3.64 | L66: 2 | M66: =K66*L66 -> 7.28
K67: 10.58 | L67: 2 | M67: 21.16
K68: 7 | L68: 2 | M68: 14
K69: 48.07 | L69: 2 | M69: 96.14
K70: 57.35 | L70: 2 | M70: 114.7
K71: 24.35 | M71: 0
K72: 30.09 | L72: 2 | M72: 60.18
K73: 32.69 | L73: 2 | M73: 65.38
K74: 30.02 | L74: 2 | M74: 60.04
K75: 12.32 | L75: 2 | M75: 24.64
K76: 21.9 | L76: 2 | M76: 43.8
K77: 14.45 | L77: 2 | M77: 28.9
K78: 26.42 | L78: 2 | M78: 52.84
K79: 26.23 | L79: 2 | M79: 52.46
K80: 1.08 | L80: 2 | M80: 2.16
K81: 6.38 | L81: 2 | M81: 12.76
K82: 24.96 | L82: 2 | M82: 49.92
K83: 24.14 | L83: 2 | M83: 48.28
K84: 4.87 | L84: 2 | M84: 9.74
K85: 17.77 | L85: 2 | M85: 35.54
K86: 34.46 | L86: 2 | M86: 68.92
K87: 19.44 | L87: 2 | M87: 38.88
K88: 12.73 | L88: 2 | M88: 25.46
K89: 15.82 | L89: 2 | M89: 31.64
K90: 23.16 | L90: 2 | M90: 46.32
K91: 18.9 | L91: 2 | M91: 37.8
K92: 6.93 | M92: 0
K93: 28.75 | L93: 2 | M93: 57.5
K94: 24.61 | L94: 2 | M94: 49.22
K95: 48.43 | L95: 2 | M95: 96.86
M96: =SUM(M53:M95) -> 1547.6

Sheet CPU
A1: 1 | B1: CODEVASF | E1: COMPOSIÇÃO DE PREÇO UNITÁRIO | I1: =H10 -> 3844.98 | J1: =H12 -> 4670.881704 | K1: BDI CALCULADO: | M1: =ORÇAMENTO!I6 -> 0.2148
B2: OBRA: | C2: =ORÇAMENTO!C5 -> RECAPEAMENTO - FELIXLÂNDIA - RUAS CORONEL EFRAIM EPIFÂNIO, RAIMUNDO FERREIRA DA SILVA, MARCOS ANTERO | G2: DATA: | H2: =ORÇAMENTO!C6 -> JANEIRO / 2020
B3: SERVIÇO: | C3: =VLOOKUP(A1,ORÇAMENTO!A10:I25,3) -> MOBILIZAÇÃO E DESMOBILIZAÇÃO | E3: Referência: | F3: =VLOOKUP(A1,ORÇAMENTO!A10:I25,4) -> CPU | G3: UNIDADE: | H3: =VLOOKUP(A1,ORÇAMENTO!A10:I25,5) -> GL
B5: TIPO ITEM | C5: CODIGO ITEM | D5: DESCRIÇÃO ITEM | E5: UNIDADE ITEM | F5: COEFICIENTE | G5: PRECO UNITARIO | H5: CUSTO TOTAL
B6: COMPOSICAO | C6: 89876 | D6: CAMINHÃO BASCULANTE 14 M3, COM CAVALO MECÂNICO DE CAPACIDADE MÁXIMA DE TRAÇÃO COMBINADO DE 36000 KG, POTÊNCIA 286 CV, INCLUSIVE SEMIREBOQUE COM CAÇAMBA METÁLICA | E6: CHP DIURNO. | F6: 16 | G6: 192.71 | H6: =F6*G6 -> 3083.36
B7: COMPOSICAO | C7: 89877 | D7: CAMINHÃO BASCULANTE 14 M3, COM CAVALO MECÂNICO DE CAPACIDADE MÁXIMA DE TRAÇÃO COMBINADO DE 36000 KG, POTÊNCIA 286 CV, INCLUSIVE SEMIREBOQUE COM CAÇAMBA METÁLICA | E7: CHI DIURNO. | F7: 16 | G7: 45.75 | H7: =F7*G7 -> 732
B8: COMPOSIÇÃO | C8: 88316 | D8: SERVENTE COM ENCARGOS COMPLEMENTARES | E8: H | F8: 2 | G8: 14.81 | H8: =G8*F8 -> 29.62
B9: PRODUÇÃO DA EQUIPE | E9: 1 | F9: CUSTO | H9: =SUM(H6:H8) -> 3844.98
B10: TOTAL | H10: =H9/E9 -> 3844.98
B11: BDI % | H11: =1+$M$1 -> 1.2148
B12: TOTAL DO SERVIÇO - R$ | H12: =H10*H11 -> 4670.881704
A14: =A1+1 -> 2 | B14: CODEVASF | E14: COMPOSIÇÃO DE PREÇO UNITÁRIO | I14: =H27 -> 17587.81 | J14: =H29 -> 21365.67159
B15: OBRA: | C15: =$C$2 -> RECAPEAMENTO - FELIXLÂNDIA - RUAS CORONEL EFRAIM EPIFÂNIO, RAIMUNDO FERREIRA DA SILVA, MARCOS ANTERO | G15: DATA: | H15: =$H$2 -> JANEIRO / 2020
B16: SERVIÇO: | C16: =VLOOKUP(A14,ORÇAMENTO!$A$10:$I$25,3) -> ADMINISTRAÇÃO LOCAL | E16: SINAPI | F16: CPU | G16: UNIDADE: | H16: =VLOOKUP(A14,ORÇAMENTO!$A$10:$I$25,5) -> GL
B18: TIPO ITEM | C18: CODIGO ITEM | D18: DESCRIÇÃO ITEM | E18: UNIDADE ITEM | F18: COEFICIENTE | G18: PRECO UNITARIO | H18: CUSTO TOTAL
B19: INSUMO | C19: 14250 | D19: ENERGIA ELÉTRICA | E19: kwh | F19: 600 | G19: 0.62 | H19: =F19*G19 -> 372
B20: INSUMO | C20: 14583 | D20: ÁGUA/ESGOTO | E20: m³ | F20: 15 | G20: =1.9*11.73 -> 22.287 | H20: 334.305
B21: COTAÇÃO | C21: MERC. | D21: TELEFONE (PLANO CONTROLE) | E21: UNID | F21: 3 | G21: 65 | H21: 195
B22: COMPOSICAO | C22: 2708 | D22: Engenheiro Civil | E22: H | F22: 20 | G22: 130.41 | H22: 2608.2
B23: COMPOSICAO | C23: 4083 | D23: Encarregado Geral | E23: H | F23: 110 | G23: 32.39 | H23: 3562.9
B24: COMPOSICAO | C24: 7153 | D24: Técnico Laboratorista de Solos | E24: H | F24: 0 | G24: 28.3 | H24: 0
B25: COMPOSICAO | C25: 2350 | D25: Auxiliar de escritório | E25: H | F25: 110 | G25: 15.65 | H25: 1721.5
B26: PRODUÇÃO DA EQUIPE | E26: 0.5 | F26: CUSTO | H26: =SUM(H19:H25) -> 8793.905
B27: TOTAL | H27: =H26/E26 -> 17587.81
B28: BDI % | H28: =1+$M$1 -> 1.2148
B29: TOTAL DO SERVIÇO - R$ | H29: =H27*H28 -> 21365.67159
A31: =A14+1 -> 3 | B31: CODEVASF | E31: COMPOSIÇÃO DE PREÇO UNITÁRIO | I31: =H38 -> 2600 | J31: =H40 -> 3158.48
B32: OBRA: | C32: =$C$2 -> RECAPEAMENTO - FELIXLÂNDIA - RUAS CORONEL EFRAIM EPIFÂNIO, RAIMUNDO FERREIRA DA SILVA, MARCOS ANTERO | G32: DATA: | H32: =$H$2 -> JANEIRO / 2020
B33: SERVIÇO: | C33: =VLOOKUP(A31,ORÇAMENTO!$A$10:$I$25,3) -> CANTEIRO DE OBRAS | E33: SINAPI | F33: =VLOOKUP(A31,ORÇAMENTO!$A$10:$I$25,4) -> CPU | G33: UNIDADE: | H33: =VLOOKUP(A31,ORÇAMENTO!$A$10:$I$25,5) -> GL
B35: TIPO ITEM | C35: CODIGO ITEM | D35: DESCRIÇÃO ITEM | E35: UNIDADE ITEM | F35: COEFICIENTE | G35: PRECO UNITARIO | H35: CUSTO TOTAL
B36: COTAÇÃO | C36: MERC. | D36: ALUGUEL DE IMÓVEL OU CONTEINER QUE ATENDA AOS REQUISITOS MÍNIMOS PARA INSTALAÇÃO DO CANTEIRO DE OBRAS | E36: MÊS | F36: 4 | G36: 650 | H36: =F36*G36 -> 2600
B37: PRODUÇÃO DA EQUIPE | E37: 1 | F37: CUSTO | H37: =SUM(H36:H36) -> 2600
B38: TOTAL | H38: =H37/E37 -> 2600
B39: BDI % | H39: =1+$M$1 -> 1.2148
B40: TOTAL DO SERVIÇO - R$ | H40: =H38*H39 -> 3158.48
A42: =A31+1 -> 4 | B42: CODEVASF | E42: COMPOSIÇÃO DE PREÇO UNITÁRIO | I42: =H55 -> 306.1769 | J42: =H57 -> 371.9436981
B43: OBRA: | C43: =$C$2 -> RECAPEAMENTO - FELIXLÂNDIA - RUAS CORONEL EFRAIM EPIFÂNIO, RAIMUNDO FERREIRA DA SILVA, MARCOS ANTERO | G43: DATA: | H43: =$H$2 -> JANEIRO / 2020
B44: SERVIÇO: | C44: =VLOOKUP(A42,ORÇAMENTO!$A$10:$I$25,3) -> PLACA DE OBRA EM CHAPA DE AÇO GALVANIZADO | E44: SINAPI | F44: =VLOOKUP(A42,ORÇAMENTO!$A$10:$I$25,4) -> 74209/001 | G44: UNIDADE: | H44: =VLOOKUP(A42,ORÇAMENTO!$A$10:$I$25,5) -> M2
B46: TIPO ITEM | C46: CODIGO ITEM | D46: DESCRIÇÃO ITEM | E46: UNIDADE ITEM | F46: COEFICIENTE | G46: PRECO UNITARIO | H46: CUSTO TOTAL
B47: INSUMO | C47: 4417 | D47: SARRAFO DE MADEIRA NAO APARELHADA *2,5 X 7* CM, MACARANDUBA, ANGELIM OU EQUIVALENTE DA REGIAO | E47: M | F47: 1,0000000 | G47: 5,73 | H47: =F47*G47 -> 5.73
B48: INSUMO | C48: 4491 | D48: PONTALETE DE MADEIRA NAO APARELHADA *7,5 X 7,5* CM (3 X 3 ") PINUS, MISTA OU EQUIVALENTE DA REGIAO | E48: M | F48: 4,0000000 | G48: 3,20 | H48: 12.8
B49: INSUMO | C49: 4813 | D49: PLACA DE OBRA (PARA CONSTRUCAO CIVIL) EM CHAPA GALVANIZADA *N. 22*, ADESIVADA, DE *2,0 X 1,125* M | E49: M2 | F49: 1,0000000 | G49: 235,00 | H49: 235
B50: INSUMO | C50: 5075 | D50: PREGO DE ACO POLIDO COM CABECA 18 X 30 (2 3/4 X 10) | E50: KG | F50: 0,1100000 | G50: 10,03 | H50: 1.1033
B51: COMPOSICAO | C51: 88262 | D51: CARPINTEIRO DE FORMAS COM ENCARGOS COMPLEMENTARES | E51: H | F51: 1,0000000 | G51: 20,24 | H51: 20.24
B52: COMPOSICAO | C52: 88316 | D52: SERVENTE COM ENCARGOS COMPLEMENTARES | E52: H | F52: 2,0000000 | G52: 14,48 | H52: 28.96
B53: COMPOSICAO | C53: 94962 | D53: CONCRETO MAGRO PARA LASTRO, TRAÇO 1:4,5:4,5 (CIMENTO/ AREIA MÉDIA/ BRITA 1) - PREPARO MECÂNICO COM BETONEIRA 400 L. AF_07/2016 | E53: M3 | F53: 0,0100000 | G53: 234,36 | H53: 2.3436
B54: PRODUÇÃO DA EQUIPE | E54: 1 | F54: CUSTO | H54: =SUM(H47:H53) -> 306.1769
B55: TOTAL | H55: =H54/E54 -> 306.1769
B56: BDI % | H56: =1+$M$1 -> 1.2148
B57: TOTAL DO SERVIÇO - R$ | H57: =H55*H56 -> 371.9436981
A59: =A42+1 -> 5 | B59: CODEVASF | E59: COMPOSIÇÃO DE PREÇO UNITÁRIO | I59: =H73 -> 150.02915 | J59: =H75 -> 182.2554114
B60: OBRA: | C60: =$C$2 -> RECAPEAMENTO - FELIXLÂNDIA - RUAS CORONEL EFRAIM EPIFÂNIO, RAIMUNDO FERREIRA DA SILVA, MARCOS ANTERO | G60: DATA: | H60: =$H$2 -> JANEIRO / 2020
B61: SERVIÇO: | C61: =VLOOKUP(A59,ORÇAMENTO!$A$10:$I$25,3) -> EXECUÇÃO E COMPACTAÇÃO DE BASE E OU SUB BASE PARA PAVIMENTAÇÃO DE BRITA GRADUADA SIMPLES TRATADA COM CIMENTO, PARA TRATAMENTO DOS BURACOS | E61: SINAPI | F61: =VLOOKUP(A59,ORÇAMENTO!$A$10:$I$25,4) -> 96397 | G61: UNIDADE: | H61: =VLOOKUP(A59,ORÇAMENTO!$A$10:$I$25,5) -> M3
B63: TIPO ITEM | C63: CODIGO ITEM | D63: DESCRIÇÃO ITEM | E63: UNIDADE ITEM | F63: COEFICIENTE | G63: PRECO UNITARIO | H63: CUSTO TOTAL
B64: COMPOSICAO | C64: 91277 | D64: PLACA VIBRATÓRIA REVERSÍVEL COM MOTOR 4 TEMPOS A GASOLINA, FORÇA CENTR CHP AS 7,80 ÍFUGA DE 25 KN (2500 KGF), POTÊNCIA 5,5 CV | E64: CHP | F64: 0.2 | G64: 7.8 | H64: =F64*G64 -> 1.56
B65: COMPOSICAO | C65: 91278 | D65: PLACA VIBRATÓRIA REVERSÍVEL COM MOTOR 4 TEMPOS A GASOLINA, FORÇA CENTR CHP AS 7,80 ÍFUGA DE 25 KN (2500 KGF), POTÊNCIA 5,6 CV | E65: CHI | F65: 0.25 | G65: 0.58 | H65: 0.145
B66: COMPOSICAO | C66: 5901 | D66: CAMINHÃO PIPA 10.000 L TRUCADO, PESO BRUTO TOTAL 23.000 KG, CARGA ÚTIL MÁXIMA 15.935 KG, DISTÂNCIA ENTRE EIXOS 4,8 M, POTÊNCIA 230 CV, INCLUSIVE TANQUE DE AÇO PARA TRANSPORTE DE ÁGUA - CHP DIURNO. AF_06/2014 | E66: CHP | F66: 0,0020000 | G66: 178,38 | H66: 0.35676
B67: COMPOSICAO | C67: 5903 | D67: CAMINHÃO PIPA 10.000 L TRUCADO, PESO BRUTO TOTAL 23.000 KG, CARGA ÚTIL MÁXIMA 15.935 KG, DISTÂNCIA ENTRE EIXOS 4,8 M, POTÊNCIA 230 CV, INCLUSIVE TANQUE DE AÇO PARA TRANSPORTE DE ÁGUA - CHI DIURNO. AF_06/2014 | E67: CHI | F67: 0,0330000 | G67: 36,11 | H67: 1.19163
B68: COMPOSICAO | C68: 5932 | D68: MOTONIVELADORA POTÊNCIA BÁSICA LÍQUIDA (PRIMEIRA MARCHA) 125 HP, PESO BRUTO 13032 KG, LARGURA DA LÂMINA DE 3,7 M - CHP DIURNO. AF_06/2014 | E68: CHP | F68: 0,0080000 | G68: 140,83 | H68: 1.12664
B69: COMPOSICAO | C69: 5934 | D69: MOTONIVELADORA POTÊNCIA BÁSICA LÍQUIDA (PRIMEIRA MARCHA) 125 HP, PESO BRUTO 13032 KG, LARGURA DA LÂMINA DE 3,7 M - CHI DIURNO. AF_06/2014 | E69: CHI | F69: 0,0270000 | G69: 54,16 | H69: 1.46232
B70: COMPOSICAO | C70: 88316 | D70: SERVENTE COM ENCARGOS COMPLEMENTARES | E70: H | F70: 0,0350000 | G70: 14,48 | H70: 0.5068
B71: COMPOSICAO | C71: 96394 | D71: USINAGEM DE BRITA GRADUADA TRATADA COM CIMENTO, UTILIZANDO BRITA COMERCIAL COM USINA 300 T/H. AF_06/2017 | E71: M3 | F71: 1,0000000 | G71: 143,68 | H71: 143.68
B72: PRODUÇÃO DA EQUIPE | E72: 1 | F72: CUSTO | H72: =SUM(H64:H71) -> 150.02915
B73: TOTAL | H73: =H72/E72 -> 150.02915
B74: BDI % | H74: =1+$M$1 -> 1.2148
B75: TOTAL DO SERVIÇO - R$ | H75: =H73*H74 -> 182.2554114
A77: =A59+1 -> 6 | B77: CODEVASF | E77: COMPOSIÇÃO DE PREÇO UNITÁRIO | I77: =H91 -> 1.902812 | J77: =H93 -> 2.311536018
B78: OBRA: | C78: =$C$2 -> RECAPEAMENTO - FELIXLÂNDIA - RUAS CORONEL EFRAIM EPIFÂNIO, RAIMUNDO FERREIRA DA SILVA, MARCOS ANTERO | G78: DATA: | H78: =$H$2 -> JANEIRO / 2020 | J78: =H94 -> 0
B79: SERVIÇO: | C79: =VLOOKUP(A77,ORÇAMENTO!$A$10:$I$25,3) -> EXECUÇÃO DE PINTURA DE LIGAÇÃO COM EMULSÃO ASFÁLTICA RR-2C, INCLUSIVE LIMPEZA DO PAVIMENTO | E79: SINAPI | F79: =VLOOKUP(A77,ORÇAMENTO!$A$10:$I$25,4) -> 96402 | G79: UNIDADE: | H79: =VLOOKUP(A77,ORÇAMENTO!$A$10:$I$25,5) -> M2
B81: TIPO ITEM | C81: CODIGO ITEM | D81: DESCRIÇÃO ITEM | E81: UNIDADE ITEM | F81: COEFICIENTE | G81: PRECO UNITARIO | H81: CUSTO TOTAL
B82: COMPOSICAO | C82: 5839 | D82: VASSOURA MECÂNICA REBOCÁVEL COM ESCOVA CILÍNDRICA, LARGURA ÚTIL DE VARRIMENTO DE 2,44 M - CHP DIURNO. AF_06/2014 | E82: CHP | F82: 0,0020000 | G82: 4,96 | H82: =F82*G82 -> 0.00992
B83: COMPOSICAO | C83: 5841 | D83: VASSOURA MECÂNICA REBOCÁVEL COM ESCOVA CILÍNDRICA, LARGURA ÚTIL DE VARRIMENTO DE 2,44 M - CHI DIURNO. AF_06/2014 | E83: CHI | F83: 0,0040000 | G83: 2,49 | H83: 0.00996
B84: INSUMO | C84: 41903 | D84: EMULSAO ASFALTICA CATIONICA RR-2C PARA USO EM PAVIMENTACAO ASFALTICA (COLETADO CAIXA NA ANP ACRESCIDO DE ICMS) | E84: KG | F84: 0,4500000 | G84: 2,76 | H84: 1.242
B85: COMPOSICAO | C85: 83362 | D85: ESPARGIDOR DE ASFALTO PRESSURIZADO, TANQUE 6 M3 COM ISOLAÇÃO TÉRMICA, AQUECIDO COM 2 MAÇARICOS, COM BARRA ESPARGIDORA 3,60 M, MONTADO SOBRE CAMINHÃO TOCO, PBT 14.300 KG, POTÊNCIA 185 CV - CHP DIURNO. AF_08/2015 | E85: CHP | F85: 0,0001000 | G85: 182,22 | H85: 0.018222
B86: COMPOSICAO | C86: 88316 | D86: SERVENTE COM ENCARGOS COMPLEMENTARES | E86: H | F86: 0,0060000 | G86: 14,48 | H86: 0.08688
B87: COMPOSICAO | C87: 89035 | D87: TRATOR DE PNEUS, POTÊNCIA 85 CV, TRAÇÃO 4X4, PESO COM LASTRO DE 4.675 KG - CHP DIURNO. AF_06/2014 | E87: CHP | F87: 0,0020000 | G87: 113,87 | H87: 0.22774
B88: COMPOSICAO | C88: 89036 | D88: TRATOR DE PNEUS, POTÊNCIA 85 CV, TRAÇÃO 4X4, PESO COM LASTRO DE 4.675 KG - CHI DIURNO. AF_06/2014 | E88: CHI | F88: 0,0040000 | G88: 30,36 | H88: 0.12144
B89: COMPOSICAO | C89: 91486 | D89: ESPARGIDOR DE ASFALTO PRESSURIZADO, TANQUE 6 M3 COM ISOLAÇÃO TÉRMICA, AQUECIDO COM 2 MAÇARICOS, COM BARRA ESPARGIDORA 3,60 M, MONTADO SOBRE CAMINHÃO TOCO, PBT 14.300 KG, POTÊNCIA 185 CV - CHI DIURNO. AF_08/2015 | E89: CHI | F89: 0,0050000 | G89: 37,33 | H89: 0.18665
B90: PRODUÇÃO DA EQUIPE | E90: 1 | F90: CUSTO | H90: =SUM(H82:H89) -> 1.902812
B91: TOTAL | H91: =H90/E90 -> 1.902812
B92: BDI % | H92: =1+$M$1 -> 1.2148
B93: TOTAL DO SERVIÇO - R$ | H93: =H91*H92 -> 2.311536018
A95: =A77+1 -> 7 | B95: CODEVASF | E95: COMPOSIÇÃO DE PREÇO UNITÁRIO | I95: =H113 -> 449.49782 | J95: =H115 -> 546.0499517
B96: OBRA: | C96: =$C$2 -> RECAPEAMENTO - FELIXLÂNDIA - RUAS CORONEL EFRAIM EPIFÂNIO, RAIMUNDO FERREIRA DA SILVA, MARCOS ANTERO | G96: DATA: | H96: =$H$2 -> JANEIRO / 2020
B97: SERVIÇO: | C97: =VLOOKUP(A95,ORÇAMENTO!$A$10:$I$25,3) -> PRE-MISTURADO A FRIO COM EMULSAO RL-1C, INCLUSO USINAGEM E APLICACAO EXCLUSIVE TRANSPORTE | E97: SINAPI | F97: =VLOOKUP(A95,ORÇAMENTO!$A$10:$I$25,4) -> 73759/002 | G97: UNIDADE: | H97: =VLOOKUP(A95,ORÇAMENTO!$A$10:$I$25,5) -> M3
B99: TIPO ITEM | C99: CODIGO ITEM | D99: DESCRIÇÃO ITEM | E99: UNIDADE ITEM | F99: COEFICIENTE | G99: PRECO UNITARIO | H99: CUSTO TOTAL
B100: INSUMO | C100: 367 | D100: AREIA GROSSA - POSTO JAZIDA/FORNECEDOR (RETIRADO NA JAZIDA, SEM TRANSPORTE) | E100: M3 | F100: 0,4110000 | G100: 63,34 | H100: =F100*G100 -> 26.03274
B101: INSUMO | C101: 4720 | D101: PEDRA BRITADA N. 0, OU PEDRISCO (4,8 A 9,5 MM) POSTO PEDREIRA/FORNECEDOR, SEM FRETE | E101: M3 | F101: 0,4840000 | G101: 89,40 | H101: 43.2696
B102: INSUMO | C102: 4721 | D102: PEDRA BRITADA N. 1 (9,5 a 19 MM) POSTO PEDREIRA/FORNECEDOR, SEM FRETE | E102: M3 | F102: 0,4840000 | G102: 70,02 | H102: 33.88968
B103: COMPOSICAO | C103: 5835 | D103: VIBROACABADORA DE ASFALTO SOBRE ESTEIRAS, LARGURA DE PAVIMENTAÇÃO 1,90 M A 5,30 M, POTÊNCIA 105 HP CAPACIDADE 450 T/H - CHP DIURNO. AF_11/2014 | E103: CHP | F103: 0,0210000 | G103: 267,82 | H103: 5.62422
B104: COMPOSICAO | C104: 5837 | D104: VIBROACABADORA DE ASFALTO SOBRE ESTEIRAS, LARGURA DE PAVIMENTAÇÃO 1,90 M A 5,30 M, POTÊNCIA 105 HP CAPACIDADE 450 T/H - CHI DIURNO. AF_11/2014 | E104: CHI | F104: 0,0790000 | G104: 108,44 | H104: 8.56676
B105: COMPOSICAO | C105: 5867 | D105: ROLO COMPACTADOR VIBRATÓRIO TANDEM AÇO LISO, POTÊNCIA 58 HP, PESO SEM/COM LASTRO 6,5 / 9,4 T, LARGURA DE TRABALHO 1,2 M - CHP DIURNO. AF_06/2014 | E105: CHP | F105: 0,0180000 | G105: 92,53 | H105: 1.66554
B106: COMPOSICAO | C106: 5869 | D106: ROLO COMPACTADOR VIBRATÓRIO TANDEM AÇO LISO, POTÊNCIA 58 HP, PESO SEM/COM LASTRO 6,5 / 9,4 T, LARGURA DE TRABALHO 1,2 M - CHI DIURNO. AF_06/2014 | E106: CHI | F106: 0,0820000 | G106: 42,16 | H106: 3.45712
B107: COMPOSICAO | C107: 6879 | D107: ROLO COMPACTADOR DE PNEUS ESTÁTICO, PRESSÃO VARIÁVEL, POTÊNCIA 111 HP, PESO SEM/COM LASTRO 9,5 / 26 T, LARGURA DE TRABALHO 1,90 M - CHP DIURNO. AF_07/2014 | E107: CHP | F107: 0,0200000 | G107: 120,37 | H107: 2.4074
B108: COMPOSICAO | C108: 6880 | D108: ROLO COMPACTADOR DE PNEUS ESTÁTICO, PRESSÃO VARIÁVEL, POTÊNCIA 111 HP, PESO SEM/COM LASTRO 9,5 / 26 T, LARGURA DE TRABALHO 1,90 M - CHI DIURNO. AF_07/2014 | E108: CHI | F108: 0,0800000 | G108: 48,87 | H108: 3.9096
B109: INSUMO | C109: 41904 | D109: EMULSAO ASFALTICA CATIONICA RL-1C PARA USO EM PAVIMENTACAO ASFALTICA (COLETADO CAIXA NA ANP ACRESCIDO DE ICMS) | E109: T | F109: 0,1320000 | G109: 2.304,38 | H109: 304.17816
B110: COMPOSICAO | C110: 88316 | D110: SERVENTE COM ENCARGOS COMPLEMENTARES | E110: H | F110: 0,4000000 | G110: 14,48 | H110: 5.792
B111: COMPOSICAO | C111: 93439 | D111: USINA DE ASFALTO À FRIO, CAPACIDADE DE 40 A 60 TON/HORA, ELÉTRICA POTÊNCIA 30 CV - CHP DIURNO. AF_03/2016 | E111: CHP | F111: 0,1000000 | G111: 107,05 | H111: 10.705
B112: PRODUÇÃO DA EQUIPE | E112: 1 | F112: CUSTO | H112: =SUM(H100:H111) -> 449.49782
B113: TOTAL | H113: =H112/E112 -> 449.49782
B114: BDI % | H114: =1+$M$1 -> 1.2148
B115: TOTAL DO SERVIÇO - R$ | H115: =H113*H114 -> 546.0499517
A117: =A95+1 -> 8 | B117: CODEVASF | E117: COMPOSIÇÃO DE PREÇO UNITÁRIO | I117: =H125 -> 0.5552071 | J117: =H127 -> 0.6744655851
B118: OBRA: | C118: =$C$2 -> RECAPEAMENTO - FELIXLÂNDIA - RUAS CORONEL EFRAIM EPIFÂNIO, RAIMUNDO FERREIRA DA SILVA, MARCOS ANTERO | G118: DATA: | H118: =$H$2 -> JANEIRO / 2020
B119: SERVIÇO: | C119: =VLOOKUP(A117,ORÇAMENTO!$A$10:$I$25,3) -> TRANSPORTE COM CAMINHÃO BASCULANTE DE 18 M3, EM VIA URBANA PAVIMENTADA, DMT ACIMA DE 30 KM(UNIDADE: M3XKM). | E119: SINAPI | F119: =VLOOKUP(A117,ORÇAMENTO!$A$10:$I$25,4) -> 95427 | G119: UNIDADE: | H119: =VLOOKUP(A117,ORÇAMENTO!$A$10:$I$25,5) -> M3XKM
B121: TIPO ITEM | C121: CODIGO ITEM | D121: DESCRIÇÃO ITEM | E121: UNIDADE ITEM | F121: COEFICIENTE | G121: PRECO UNITARIO | H121: CUSTO TOTAL
B122: COMPOSICAO | C122: 89883 | D122: CAMINHÃO BASCULANTE 18 M3, COM CAVALO MECÂNICO DE CAPACIDADE MÁXIMA DE TRAÇÃO COMBINADO DE 45000 KG, POTÊNCIA 330 CV, INCLUSIVE SEMIREBOQUE COM CAÇAMBA METÁLICA - CHP DIURNO. AF_12/2014 | E122: CHP | F122: 0,0024700 | G122: 212,95 | H122: =G122*F122 -> 0.5259865
B123: COMPOSICAO | C123: 89884 | D123: CAMINHÃO BASCULANTE 18 M3, COM CAVALO MECÂNICO DE CAPACIDADE MÁXIMA DE TRAÇÃO COMBINADO DE 45000 KG, POTÊNCIA 330 CV, INCLUSIVE SEMIREBOQUE COM CAÇAMBA METÁLICA - CHI DIURNO. AF_12/2014 | E123: CHI | F123: 0,0006200 | G123: 47,13 | H123: =G123*F123 -> 0.0292206
B124: PRODUÇÃO DA EQUIPE | E124: 1 | F124: CUSTO | H124: =SUM(H122:H123) -> 0.5552071
B125: TOTAL | H125: =H124/E124 -> 0.5552071
B126: BDI % | H126: =1+$M$1 -> 1.2148
B127: TOTAL DO SERVIÇO - R$ | H127: =H125*H126 -> 0.6744655851
A129: =A117+1 -> 9 | B129: CODEVASF | E129: COMPOSIÇÃO DE PREÇO UNITÁRIO | I129: =H137 -> 0.5161562 | J129: =H139 -> 0.6270265518
B130: OBRA: | C130: =$C$2 -> RECAPEAMENTO - FELIXLÂNDIA - RUAS CORONEL EFRAIM EPIFÂNIO, RAIMUNDO FERREIRA DA SILVA, MARCOS ANTERO | G130: DATA: | H130: =$H$2 -> JANEIRO / 2020
B131: SERVIÇO: | C131: =VLOOKUP(A129,ORÇAMENTO!$A$10:$I$25,3) -> TRANSPORTE DE MATERIAL ASFALTICO, COM CAMINHÃO COM CAPACIDADE DE 30000L EM RODOVIA PAVIMENTADA PARA DISTÂNCIAS MÉDIAS DE TRANSPORTE SUPERIORES A 100 KM. | E131: SINAPI | F131: =VLOOKUP(A129,ORÇAMENTO!$A$10:$I$25,4) -> 93176 | G131: UNIDADE: | H131: =VLOOKUP(A129,ORÇAMENTO!$A$10:$I$25,5) -> M²
B133: TIPO ITEM | C133: CODIGO ITEM | D133: DESCRIÇÃO ITEM | E133: UNIDADE ITEM | F133: COEFICIENTE | G133: PRECO UNITARIO | H133: CUSTO TOTAL
B134: COMPOSICAO | C134: 91645 | D134: CAMINHÃO DE TRANSPORTE DE MATERIAL ASFÁLTICO 30.000 L, COM CAVALO MECÂNICO DE CAPACIDADE MÁXIMA DE TRAÇÃO COMBINADO DE 66.000 KG, POTÊNCIA 360 CV, INCLUSIVE TANQUE DE ASFALTO COM SERPENTINA - CHP DIURNO. AF_08/2015 | E134: CHP | F134: 0,0017360 | G134: 283,47 | H134: =F134*G134 -> 0.49210392
B135: COMPOSICAO | C135: 91646 | D135: CAMINHÃO DE TRANSPORTE DE MATERIAL ASFÁLTICO 30.000 L, COM CAVALO MECÂNICO DE CAPACIDADE MÁXIMA DE TRAÇÃO COMBINADO DE 66.000 KG, POTÊNCIA 360 CV, INCLUSIVE TANQUE DE ASFALTO COM SERPENTINA - CHI DIURNO. AF_08/2015 | E135: CHI | F135: 0,0004340 | G135: 55,42 | H135: 0.02405228
B136: PRODUÇÃO DA EQUIPE | E136: 1 | F136: CUSTO | H136: =SUM(H134:H135) -> 0.5161562
B137: TOTAL | H137: =H136/E136 -> 0.5161562
B138: BDI % | H138: =1+$M$1 -> 1.2148
B139: TOTAL DO SERVIÇO - R$ | H139: =H137*H138 -> 0.6270265518
A141: =A129+1 -> 10 | B141: CODEVASF | E141: COMPOSIÇÃO DE PREÇO UNITÁRIO | I141: =H154 -> 14.49547741 | J141: =H156 -> 17.60910596
B142: OBRA: | C142: =$C$2 -> RECAPEAMENTO - FELIXLÂNDIA - RUAS CORONEL EFRAIM EPIFÂNIO, RAIMUNDO FERREIRA DA SILVA, MARCOS ANTERO | G142: DATA: | H142: =$H$2 -> JANEIRO / 2020
B143: SERVIÇO: | C143: =VLOOKUP(A141,ORÇAMENTO!$A$10:$I$25,3) -> SINALIZACAO HORIZONTAL COM TINTA RETRORREFLETIVA A BASE DE RESINA ACRILICA COM MICROESFERAS DE VIDRO | E143: SINAPI | F143: =VLOOKUP(A141,ORÇAMENTO!$A$10:$I$25,4) -> 72947 | G143: UNIDADE: | H143: =VLOOKUP(A141,ORÇAMENTO!$A$10:$I$25,5) -> M2
B145: TIPO ITEM | C145: CODIGO ITEM | D145: DESCRIÇÃO ITEM | E145: UNIDADE ITEM | F145: COEFICIENTE | G145: PRECO UNITARIO | H145: CUSTO TOTAL
B146: INSUMO | C146: 5318 | D146: SOLVENTE DILUENTE A BASE DE AGUARRAS | E146: L | F146: 0,1300000 | G146: 13,84 | H146: =F146*G146 -> 1.7992
B147: COMPOSICAO | C147: 5824 | D147: CAMINHÃO TOCO, PBT 16.000 KG, CARGA ÚTIL MÁX. 10.685 KG, DIST. ENTRE EIXOS 4,8 M, POTÊNCIA 189 CV, INCLUSIVE CARROCERIA FIXA ABERTA DE MADEIRA P/ TRANSPORTE GERAL DE CARGA SECA, DIMEN. APROX. 2,5 X 7,00 X 0,50 M - CHP DIURNO. AF_06/2014 | E147: CHP | F147: 0,0033330 | G147: 116,34 | H147: 0.38776122
B148: INSUMO | C148: 7343 | D148: TINTA A BASE DE RESINA ACRILICA, PARA SINALIZACAO HORIZONTAL VIARIA (NBR 11862) | E148: L | F148: 0,6000000 | G148: 13,41 | H148: 8.046
B149: INSUMO | C149: 7348 | D149: TINTA ACRILICA PREMIUM PARA PISO | E149: L | F149: 0,0300000 | G149: 10,55 | H149: 0.3165
B150: INSUMO | C150: 25972 | D150: MICROESFERAS DE VIDRO PARA SINALIZACAO HORIZONTAL VIARIA, TIPO I-B (PREMIX) - NBR 16184 | E150: KG | F150: 0,4000000 | G150: 7,77 | H150: 3.108
B151: COMPOSICAO | C151: 88316 | D151: SERVENTE COM ENCARGOS COMPLEMENTARES | E151: H | F151: 0,0333300 | G151: 14,48 | H151: 0.4826184
B152: COMPOSICAO | C152: 95133 | D152: MÁQUINA DEMARCADORA DE FAIXA DE TRÁFEGO À FRIO, AUTOPROPELIDA, POTÊNCIA 38 HP - CHP DIURNO. AF_07/2016 | E152: CHP | F152: 0,0033330 | G152: 106,63 | H152: 0.35539779
B153: PRODUÇÃO DA EQUIPE | E153: 1 | F153: CUSTO | H153: =SUM(H146:H152) -> 14.49547741
B154: TOTAL | H154: =H153/E153 -> 14.49547741
B155: BDI % | H155: =1+$M$1 -> 1.2148
B156: TOTAL DO SERVIÇO - R$ | H156: =H154*H155 -> 17.60910596
A158: =A141+1 -> 11 | B158: CODEVASF | E158: COMPOSIÇÃO DE PREÇO UNITÁRIO | I158: =H172 -> 21.62705 | J158: =H174 -> 26.27254034
B159: OBRA: | C159: =$C$2 -> RECAPEAMENTO - FELIXLÂNDIA - RUAS CORONEL EFRAIM EPIFÂNIO, RAIMUNDO FERREIRA DA SILVA, MARCOS ANTERO | G159: DATA: | H159: =$H$2 -> JANEIRO / 2020
B160: SERVIÇO: | C160: =VLOOKUP(A158,ORÇAMENTO!$A$10:$I$25,3) -> GUIA (MEIO-FIO) CONCRETO, MOLDADA IN LOCO EM TRECHO RETO COM EXTRUSORA, 13 CM BASE X 22 CM ALTURA. | E160: SINAPI | F160: =VLOOKUP(A158,ORÇAMENTO!$A$10:$I$25,4) -> 94263 | G160: UNIDADE: | H160: =VLOOKUP(A158,ORÇAMENTO!$A$10:$I$25,5) -> M
B162: TIPO ITEM | C162: CODIGO ITEM | D162: DESCRIÇÃO ITEM | E162: UNIDADE ITEM | F162: COEFICIENTE | G162: PRECO UNITARIO | H162: CUSTO TOTAL
B163: INSUMO | C163: 370 | D163: AREIA MEDIA - POSTO JAZIDA/FORNECEDOR (RETIRADO NA JAZIDA, SEM TRANSPORTE) | E163: M3 | F163: 0,0070000 | G163: 66,67 | H163: =F163*G163 -> 0.46669
B164: INSUMO | C164: 34492 | D164: CONCRETO USINADO BOMBEAVEL, CLASSE DE RESISTENCIA C20, COM BRITA 0 E 1, SLUMP = 100 +/- 20 MM, EXCLUI SERVICO DE BOMBEAMENTO (NBR 8953) | E164: M3 | F164: 0,0300000 | G164: 244,99 | H164: 7.3497
B165: COMPOSICAO | C165: 88243 | D165: AJUDANTE ESPECIALIZADO COM ENCARGOS COMPLEMENTARES | E165: H | F165: 0,0870000 | G165: 17,67 | H165: 1.53729
B166: COMPOSICAO | C166: 88309 | D166: PEDREIRO COM ENCARGOS COMPLEMENTARES | E166: H | F166: 0,2210000 | G166: 20,39 | H166: 4.50619
B167: COMPOSICAO | C167: 88316 | D167: SERVENTE COM ENCARGOS COMPLEMENTARES | E167: H | F167: 0,4420000 | G167: 14,48 | H167: 6.40016
B168: COMPOSICAO | C168: 88631 | D168: ARGAMASSA TRAÇO 1:4 (EM VOLUME DE CIMENTO E AREIA MÉDIA ÚMIDA), PREPARO MANUAL. AF_08/2019 | E168: M3 | F168: 0,0020000 | G168: 340,82 | H168: 0.68164
B169: COMPOSICAO | C169: 92960 | D169: MÁQUINA EXTRUSORA DE CONCRETO PARA GUIAS E SARJETAS, MOTOR A DIESEL, POTÊNCIA 14 CV - CHP DIURNO. AF_12/2015 | E169: CHP | F169: 0,0140000 | G169: 17,43 | H169: 0.24402
B170: COMPOSICAO | C170: 92961 | D170: MÁQUINA EXTRUSORA DE CONCRETO PARA GUIAS E SARJETAS, MOTOR A DIESEL, POTÊNCIA 14 CV - CHI DIURNO. AF_12/2015 | E170: CHI | F170: 0,0720000 | G170: 6,13 | H170: 0.44136
B171: PRODUÇÃO DA EQUIPE | E171: 1 | F171: CUSTO | H171: =SUM(H163:H170) -> 21.62705
B172: TOTAL | H172: =H171/E171 -> 21.62705
B173: BDI % | H173: =1+$M$1 -> 1.2148
B174: TOTAL DO SERVIÇO - R$ | H174: =H172*H173 -> 26.27254034
A176: =A158+1 -> 12 | B176: CODEVASF | E176: COMPOSIÇÃO DE PREÇO UNITÁRIO | I176: =H184 -> 0.5408518 | J176: =H186 -> 0.6570267666
B177: OBRA: | C177: =$C$2 -> RECAPEAMENTO - FELIXLÂNDIA - RUAS CORONEL EFRAIM EPIFÂNIO, RAIMUNDO FERREIRA DA SILVA, MARCOS ANTERO | G177: DATA: | H177: =$H$2 -> JANEIRO / 2020
B178: SERVIÇO: | C178: =VLOOKUP(A176,ORÇAMENTO!$A$10:$I$25,3) -> TRANSPORTE COM CAMINHÃO BASCULANTE DE 18 M3, EM VIA URBANA PAVIMENTADA, DMT ACIMA DE 30 KM(UNIDADE: M3XKM). | E178: SINAPI | F178: =VLOOKUP(A176,ORÇAMENTO!$A$10:$I$25,4) -> 95427 | G178: UNIDADE: | H178: =VLOOKUP(A176,ORÇAMENTO!$A$10:$I$25,5) -> M3XKM
B180: TIPO ITEM | C180: CODIGO ITEM | D180: DESCRIÇÃO ITEM | E180: UNIDADE ITEM | F180: COEFICIENTE | G180: PRECO UNITARIO | H180: CUSTO TOTAL
B181: COMPOSICAO | C181: 89883 | D181: CAMINHÃO BASCULANTE 18 M3, COM CAVALO MECÂNICO DE CAPACIDADE MÁXIMA DE TRAÇÃO COMBINADO DE 45000 KG, POTÊNCIA 330 CV, INCLUSIVE SEMIREBOQUE COM CAÇAMBA METÁLICA - CHP DIURNO. AF_12/2014 | E181: CHP | F181: 0,0024700 | G181: 208,22 | H181: =F181*G181 -> 0.5143034
B182: COMPOSICAO | C182: 89884 | D182: CAMINHÃO BASCULANTE 18 M3, COM CAVALO MECÂNICO DE CAPACIDADE MÁXIMA DE TRAÇÃO COMBINADO DE 45000 KG, POTÊNCIA 330 CV, INCLUSIVE SEMIREBOQUE COM CAÇAMBA METÁLICA - CHI DIURNO. AF_12/2014 | E182: CHI | F182: 0,0006200 | G182: 42,82 | H182: 0.0265484
B183: PRODUÇÃO DA EQUIPE | E183: 1 | F183: CUSTO | H183: =SUM(H181:H182) -> 0.5408518
B184: TOTAL | H184: =H183/E183 -> 0.5408518
B185: BDI % | H185: =1+$M$1 -> 1.2148
B186: TOTAL DO SERVIÇO - R$ | H186: =H184*H185 -> 0.6570267666

Sheet BDI SERV
B1: DETALHAMENTO DO BDI - SERVIÇOS
B4: Item | C4: Descrição dos Serviços | D4: % | E4: %
D5: PV | E5: CD
B7: 1 | C7: ADMINISTRAÇÃO CENTRAL | E7: 4.01
B8: 1.1 | C8: ESCRITÓRIO CENTRAL
B9: 1.2 | C9: VIAGENS
B10: 1.3 | C10: OUTROS
B12: 2 | C12: IMPOSTOS E TAXAS | D12: =SUM(D13:D16) -> 5.65 | E12: =SUM(E13:E16) -> 7.06
B13: 2.1 | C13: ISS (*) | D13: 2 | E13: =ROUND(D13*1.2515,2) -> 2.5
B14: 2.2 | C14: PIS | D14: 0.65 | E14: 0.81
B15: 2.3 | C15: Cofins | D15: 3 | E15: 3.75
B16: 2.4 | C16: CONTRIBUIÇÃO PREVIDENCIÁRIA SOBRE A RENDA BRUTA | D16: 0 | E16: 0
B18: 3 | C18: TAXA DE RISCO | E18: =SUM(E19:E22) -> 0.96
B19: 3.1 | C19: SEGURO | E19: 0.2
B20: 3.2 | C20: RISCO | E20: 0.56
B21: 3.3 | C21: GARANTIA | E21: 0.2
B23: 4 | C23: DESPESAS FINANCEIRAS | E23: 1.1
B25: 5 | C25: LUCRO | E25: 8
C27: BDI - CALCULADO | E27: =ROUND((((1+(E7+E18)/100)*(1+E23/100)*(1+E25/100)/(1-D12/100)-1)*100),2) -> 21.48
A29: BDI = ((1+((AC+S+R+G)/100))x(1+DF/100)x(1+L/100)/(1-I/100)-1)*100
B31: BDI (CALCULADO): | D31: =ROUND((((1+((E7+E18)/100))*(1+E23/100)*(1+E25/100))/(1-D12/100)-1)*100,2) -> 21.48 | E31: %
A33: (*) ISS CONFORME LEI COMPLEMENTAR Nº 13 / 2017 - ANEXO IV (ITEM 7.02)
A37: BDI EM CONFORMIDADE COM OS ACÓRDÃOS Nº 2369/2011 e ACÓRDÃO Nº 2.622/2013 - TCU - PLENÁRIO

Sheet BDI FORN
B1: DETALHAMENTO DO BDI - FORNECIMENTOS
B4: Item | C4: Descrição dos Serviços | D4: % | E4: %
D5: PV | E5: CD
B7: 1 | C7: ADMINISTRAÇÃO CENTRAL | E7: 4
B8: 1.1 | C8: ESCRITÓRIO CENTRAL
B9: 1.2 | C9: VIAGENS
B10: 1.3 | C10: OUTROS
B12: 2 | C12: IMPOSTOS E TAXAS | D12: =SUM(D13:D16) -> 3.65 | E12: =SUM(E13:E16) -> 4.56
B13: 2.1 | C13: ISS (*) | E13: =ROUND(D13*1.2515,2) -> 0
B14: 2.2 | C14: PIS | D14: 0.65 | E14: 0.81
B15: 2.3 | C15: Cofins | D15: 3 | E15: 3.75
B16: 2.4 | C16: CONTRIBUIÇÃO PREVIDENCIÁRIA SOBRE A RENDA BRUTA | D16: 0 | E16: 0
B18: 3 | C18: TAXA DE RISCO | E18: =SUM(E19:E22) -> 0.96
B19: 3.1 | C19: SEGURO | E19: 0.2
B20: 3.2 | C20: RISCO | E20: 0.56
B21: 3.3 | C21: GARANTIA | E21: 0.2
B23: 4 | C23: DESPESAS FINANCEIRAS | E23: 1
B25: 5 | C25: LUCRO | E25: 7.3
C27: BDI - CALCULADO | E27: =ROUND((((1+(E7+E18)/100)*(1+E23/100)*(1+E25/100)/(1-D12/100)-1)*100),2) -> 18.06
A29: BDI = ((1+((AC+S+R+G)/100))x(1+DF/100)x(1+L/100)/(1-I/100)-1)*100
B31: BDI (CALCULADO): | D31: =ROUND((((1+((E7+E18)/100))*(1+E23/100)*(1+E25/100))/(1-D12/100)-1)*100,2) -> 18.06 | E31: %
A37: BDI EM CONFORMIDADE COM OS ACÓRDÃOS Nº 2369/2011 e ACÓRDÃO Nº 2.622/2013 - TCU - PLENÁRIO

Sheet CRONOGRAMA
B1: CRONOGRAMA FÍSICO-FINANCEIRO
B2: OBRA: | C2: =ORÇAMENTO!C5 -> RECAPEAMENTO - FELIXLÂNDIA - RUAS CORONEL EFRAIM EPIFÂNIO, RAIMUNDO FERREIRA DA SILVA, MARCOS ANTERO | F2: VALOR: | G2: =ORÇAMENTO!I26 -> 475158.24
F3: PRAZO: | G3: 60 DIAS
B5: ITEM | C5: ETAPAS/DESCRIÇAO | D5: FISICO/ FINANCEIRO | E5: TOTAL ETAPAS | F5: MÊS 1 | G5: MÊS 2 | H5: TOTAL
A6: A | B6: =VLOOKUP(A6,ORÇAMENTO!$A$9:$I$26,2) -> 1 | C6: =VLOOKUP(A6,ORÇAMENTO!$A$9:$I$26,3) -> SERVIÇOS PRELIMINARES E URBANIZAÇÃO | D6: FISICO | E6: =ROUND(E7/$G$2,4) -> 0.0653 | F6: 0.6 | G6: 0.4 | H6: =SUM(F6:G6) -> 1
D7: FINANCEIRO | E7: =ORÇAMENTO!I9 -> 31047.31 | F7: =ROUND($E$7*F6,2) -> 18628.39 | G7: 12418.92 | H7: 31047.31
A8: B | B8: =VLOOKUP(A8,ORÇAMENTO!$A$9:$I$26,2) -> 2 | C8: =VLOOKUP(A8,ORÇAMENTO!$A$9:$I$26,3) -> RECAPEAMENTO | D8: FISICO | E8: =ROUND(E9/$G$2,4) -> 0.7235 | F8: 0.5 | G8: 0.5 | H8: 1
D9: FINANCEIRO | E9: =ORÇAMENTO!I15 -> 343777.74 | F9: =ROUND($E$9*F8,2) -> 171888.87 | G9: 171888.87 | H9: 343777.74
A10: C | B10: =VLOOKUP(A10,ORÇAMENTO!$A$9:$I$26,2) -> 3 | C10: =VLOOKUP(A10,ORÇAMENTO!$A$9:$I$26,3) -> TRANSPORTE DE MATERIAIS | D10: FISICO | E10: =ROUND(E11/$G$2,4) -> 0.0853 | F10: 0.5 | G10: 0.5 | H10: 1
D11: FINANCEIRO | E11: =ORÇAMENTO!I18 -> 40542.59 | F11: =ROUND($E$11*F10,2) -> 20271.3 | G11: =ROUND($E$11*G10,2) -> 20271.3 | H11: 40542.6
A12: D | B12: =VLOOKUP(A12,ORÇAMENTO!$A$9:$I$26,2) -> 4 | C12: =VLOOKUP(A12,ORÇAMENTO!$A$9:$I$26,3) -> SINALIZAÇÃO | D12: FISICO | E12: =ROUND(E13/$G$2,4) -> 0.0189 | F12: 0.2 | G12: 0.8 | H12: 1
D13: FINANCEIRO | E13: =ORÇAMENTO!I21 -> 8964.27 | F13: =ROUND($E$13*F12,2) -> 1792.85 | G13: 7171.42 | H13: 8964.27
A14: E | B14: =VLOOKUP(A14,ORÇAMENTO!$A$9:$I$26,2) -> 5. | C14: =VLOOKUP(A14,ORÇAMENTO!$A$9:$I$26,3) -> OBRAS COMPLEMENTARES | D14: FISICO | E14: =ROUND(E15/$G$2,4) -> 0.107 | F14: 0.5 | G14: 0.5 | H14: 1
D15: FINANCEIRO | E15: =ORÇAMENTO!I23 -> 50826.33 | F15: =ROUND($E$15*F14,2) -> 25413.17 | G15: 25413.17 | H15: 50826.34
B16: TOTAL | D16: FISICO | E16: =SUM(F16:G16) -> 1.000000042 | F16: =F17/E17 -> 0.5008743613 | G16: =G17/E17 -> 0.4991256807 | H16: 1.000000042
D17: FINANCEIRO | E17: =E11+E9+E7+E13+E15 -> 475158.24 | F17: =F11+F9+F7+F13+F15 -> 237994.58 | G17: =G11+G9+G7+G13+G15 -> 237163.68 | H17: 475158.26
B19: OBSERVAÇÕES:
